Cogmind - Beta 9.6 @@@ ROGUE MODE // 2020.08.04 @ 09:09:34 Player: Henry Result: Destroyed by S-10 Pest with Light Assault Rifle Performance ------------- Evolutions (0) 0 Regions Visited (1) 200 Robots Destroyed (15) 75 Value Destroyed (302) 302 Prototype IDs (0) 0 Alien Tech Used (0) 0 Bonus (0) 0 TOTAL SCORE: 577 Bonus ------- None Cogmind --------- Core Integrity 0/250 Matter 280/300 Energy 22/100 System Corruption 0% Temperature Cool (117) Movement Core (650) Ox12 Location -10/Materials Parts ------- > --- POWER (1) -------- (None) > --- PROPULSION (2) --- (None) > --- UTILITY (2) ------ High-capacity Storage Unit Signal Interpreter > --- WEAPON (2) ------- Spread Laser Spread Laser > --- INVENTORY (12) --- Light Ion Engine Aluminum Leg Aluminum Leg Aluminum Leg Aluminum Leg Aluminum Leg Heat Sink Improved Targeting Computer Small Laser Peak State ------------ > --- POWER ------------ Light Ion Engine > --- PROPULSION ------- Aluminum Leg Aluminum Leg > --- UTILITY ---------- High-capacity Storage Unit Signal Interpreter > --- WEAPON ----------- Spread Laser Light Assault Rifle > --- INVENTORY -------- Aluminum Leg Aluminum Leg Aluminum Leg Aluminum Leg Aluminum Leg Heat Sink Improved Targeting Computer Small Laser Spread Laser Spread Laser Spread Laser [Rating: 9] Favorites ----------- Power Light Ion Engine Engine Light Ion Engine Propulsion Aluminum Leg Leg Aluminum Leg Utility High-capacity Storage Unit Storage High-capacity Storage Unit Processor Signal Interpreter Weapon Light Assault Rifle Energy Gun Spread Laser Ballistic Gun Light Assault Rifle Build | -11 -10 ------- Run | Scr Mat Slots Evolved . | . . Power . | . . Propulsion . | . . Utility . | . . Weapon . | . . Parts Attached 19 | 7 12 Power 3 | 1 2 Engine 3 | 1 2 Core . | . . Reactor . | . . Propulsion 4 | 2 2 Treads . | . . Leg 4 | 2 2 Wheel . | . . Hover . | . . Flight . | . . Utility 4 | 1 3 Device . | . . Storage 3 | 1 2 Processor 1 | . 1 Hackware . | . . Protection . | . . Artifact . | . . Weapon 8 | 3 5 Energy Gun 5 | 1 4 Energy Cannon . | . . Ballistic Gun 3 | 2 1 Ballistic Cannon . | . . Launcher . | . . Special Weapon . | . . Impact Weapon . | . . Slashing Weapon . | . . Piercing Weapon . | . . Special Melee Weapon . | . . Unidentified Prototypes . | . . Parts Lost 8 | . 8 Power 2 | . 2 Propulsion 2 | . 2 Utility . | . . Weapon 4 | . 4 Highest Loss Streak 6 | . 6 Average Slot Usage (%) 78 | . 78 Engine 9 | . 9 Leg 27 | . 27 Storage 14 | . 14 Processor 1 | . 1 Energy Gun 2 | . 2 Ballistic Gun 22 | . 22 Naked Turns . | . . Heaviest Build 39 | 9 39 Greatest Support 20 | 20 20 Greatest Overweight (x) 12 | 2 12 Average Overweight (x) . | . . Largest Inventory Capacity 18 | 6 18 Average Capacity 10 | 5 10 Most Carried 12 | 2 12 Average Carried 6 | . 6 Final Capacity 12 | 6 12 Final Carried 9 | 2 9 Class Distribution -------------------- 100% | Mutant Dominant Class ---------------- Mutant | -10/Materials Resources | -11 -10 ----------- Run | Scr Mat Matter Collected 445 | 210 235 Remotely . | . . Salvage Created 397 | . 397 Parts 29 | . 29 Haulers Intercepted . | . . Recyclers Shooed 2 | . 2 Parts Field Recycled . | . . Retrieved Matter . | . . Parts Self-Destructed . | . . Prevented . | . . Kills | -11 -10 ------- Run | Scr Mat Combat Hostiles Destroyed 13 | . 13 Guns 13 | . 13 Classes Destroyed 4 | . 4 Recycler 1 | . 1 Watcher 1 | . 1 Swarmer 8 | . 8 Grunt 5 | . 5 Best Kill Streak 4 | . 4 Combat Bots Only 3 | . 3 Max Kills in Single Turn 1 | . 1 Gunslinging . | . . Exploded . | . . Melee . | . . Uniques/NPCs Destroyed . | . . Combat | -11 -10 -------- Run | Scr Mat Damage Taken 974 | . 974 Core 253 | . 253 Absorbed by Shields . | . . Core Remaining (%) 100 | 100 . Volleys Fired 77 | . 77 Largest 2 | . 2 Hottest 85 | . 85 Shots Fired 128 | . 128 Gun 128 | . 128 Cannon . | . . Launcher . | . . Special . | . . Kinetic 104 | . 104 Thermal 24 | . 24 Explosive . | . . Electromagnetic . | . . Robot Hit Streak 6 | . 6 Robot Miss Streak 7 | . 7 Penetration Max . | . . Secondary Targets . | . . Shots Hit Robots 73 | . 73 Core Hits 37 | . 37 Critical Hits . | . . Critical Kills . | . . Critical Parts Destroyed . | . . Melee Attacks . | . . Impact . | . . Slashing . | . . Piercing . | . . Sneak Attacks . | . . Combat Hostiles . | . . Follow-up Attacks . | . . Damage Inflicted 677 | . 677 Guns 530 | . 530 Cannons . | . . Explosions 147 | . 147 Melee . | . . Ramming . | . . Kinetic 370 | . 370 Thermal 307 | . 307 Explosive . | . . Electromagnetic . | . . Impact . | . . Slashing . | . . Piercing . | . . Highest Corruption . | . . Average Corruption . | . . Corruption Purged . | . . Overload Shots . | . . Overflow Damage 134 | . 134 Projectiles . | . . Explosions 134 | . 134 Melee . | . . Knockbacks . | . . Impact . | . . Kinetic . | . . Secondary . | . . Self-Inflicted Damage 94 | . 94 Shots 1 | . 1 Rammed . | . . Targets Rammed . | . . Kicked . | . . Crushed . | . . Highest Temperature 242 | . 242 Average Temperature 83 | . 83 Received Heat Transfer 102 | . 102 Siege Activations . | . . Robots Corrupted . | . . Combat Hostiles . | . . Parts Fried . | . . Impact Corruptions . | . . Robots Melted . | . . Combat Hostiles . | . . Parts Melted . | . . Heat Transferred 295 | . 295 Parts Sabotaged . | . . Parts Stolen . | . . Parts Stripped . | . . Power Chain Reactions . | . . Missiles Intercepted . | . . Alert | -11 -10 ------- Run | Scr Mat Peak Influence 145 | . 145 Average Influence 62 | . 66 Maximum Alert Level . | . . Low Security (%) 100 | 100 100 Level 1 . | . . Level 2 . | . . Level 3 . | . . Level 4 . | . . Level 5 . | . . High Security . | . . Max Security . | . . Squads Dispatched 4 | . 4 Investigation 1 | . 1 Extermination . | . . Reinforcement 3 | . 3 Assault . | . . Garrison . | . . Intercept . | . . Construction Impeded . | . . Haulers Reinforced . | . . Stealth | -11 -10 --------- Run | Scr Mat Distress Signals 1 | . 1 Communications Jammed . | . . Distress Signals . | . . Times Spotted 43 | . 43 Peak Tracking Total 7 | . 7 Tactical Retreats 10 | . 10 Traps | -11 -10 ------- Run | Scr Mat Traps Triggered 1 | . 1 Indirectly . | . . Trap Hack Attempts . | . . Triggered . | . . Disarmed . | . . Reprogrammed . | . . Reused . | . . Traps Extracted . | . . Installed . | . . Triggered . | . . Machines | -11 -10 ---------- Run | Scr Mat Machines Disabled 3 | . 3 Max in Single Turn 3 | . 3 Machines Sabotaged . | . . Garrisons Compromised . | . . Overloaded Fab Kills . | . . Fab Network Shutdowns . | . . Hacking | -11 -10 --------- Run | Scr Mat Machines Accessed . | . . Terminals . | . . Fabricators . | . . Repair Stations . | . . Recycling Units . | . . Scanalyzers . | . . Garrison Access . | . . Total Hacks . | . . Successful . | . . Failed . | . . Catastrophic . | . . Database Lockouts . | . . Manual . | . . Terminals . | . . Fabricators . | . . Repair Stations . | . . Recycling Units . | . . Scanalyzers . | . . Garrison Access . | . . Terminal Hacks . | . . Fabricator Hacks . | . . Repair Station Hacks . | . . Recycling Unit Hacks . | . . Scanalyzer . | . . Garrison Access Hacks . | . . Unauthorized Hacks . | . . Terminals . | . . Fabricators . | . . Repair Stations . | . . Recycling Units . | . . Scanalyzers . | . . Garrison Access . | . . Data Cores Recovered . | . . Used . | . . Hacking Detections . | . . Full Trace Events . | . . Feedback Events . | . . Feedback Blocked . | . . Robot Schematics Acquired . | . . Robots Built . | . . Matter . | . . Time . | . . Total Robot Build Rating . | . . Part Schematics Acquired . | . . Parts Built . | . . Matter . | . . Time . | . . Total Part Build Rating . | . . Parts Repaired . | . . Time . | . . Parts Recycled . | . . Recycled Matter . | . . Retrieved Matter . | . . Retrieved Components . | . . Parts Scanalyzed . | . . Part Schematics Acquired . | . . Parts Damaged . | . . Bothacking | -11 -10 ------------ Run | Scr Mat Used RIF Installer . | . . Robots Hacked . | . . Non-combat . | . . Combat . | . . Robot Hacks Applied . | . . Relay Couplers Released . | . . Robots Rewired . | . . Allies Hacked . | . . Hacks Repelled . | . . Allies | -11 -10 -------- Run | Scr Mat Total Allies . | . . Largest Group . | . . Highest-Rated Group . | . . Highest-Rated Ally . | . . Total Orders . | . . Ally Attacks . | . . Total Damage . | . . Kills . | . . Allies Corrupted . | . . Allies Melted . | . . Intel | -11 -10 ------- Run | Scr Mat Robot Analysis Total . | . . Derelict Logs Recovered . | . . Drone Launches . | . . Drone Recoveries . | . . Exploration | -11 -10 ------------- Run | Scr Mat Turns Passed 1106 | 62 1044 Spaces Moved 609 | 43 566 Core 11 | 10 1 Treads . | . . Legs 598 | 33 565 Wheels . | . . Hover . | . . Flight . | . . Fastest Speed 50 | 50 120 Average Speed 144 | 117 146 Slowest Speed 650 | 150 650 Overloaded Moves . | . . Propulsion Burnouts . | . . Robots Hopped . | . . Cave-ins Triggered . | . . Exploration Rate (%) 33 | 4 63 Regions Visited 1 Branch Regions . Pre-discovered Areas . | . . Known Exits Taken . | . . Unknown Exits Taken 1 | 1 . Scrap Searched . | . . Spaces Dug . | . . Terrain Destroyed 15 | . 15 Melee . | . . Projectile . | . . AOE 15 | . 15 Actions | -11 -10 --------- Run | Scr Mat Total 731 | 52 679 Wait 9 | . 9 Move 608 | 42 566 Hop . | . . Pick Up 11 | 2 9 Fast Attach 10 | 6 4 Attach 5 | 1 4 Detach 3 | 1 2 Swap 4 | . 4 Drop 4 | . 4 Fire 77 | . 77 Melee . | . . Ram . | . . Kick . | . . Crush . | . . Escape Stasis . | . . Rewire . | . . Trap . | . . Miscellaneous . | . . Route ------- -11/Scrapyard -10/Materials (discovered 3 exits: [*Mat] / *Min x2) History --------- Turn | Location | Event 12 | -11/Scrapyard | Discovered new exit (range 16) 63 | -11/Scrapyard | Entered Materials 116 | -10/Materials | Discovered new exit (range 16) 176 | -10/Materials | Discovered new exit (range 7) 311 | -10/Materials | Build established: Mutant 638 | -10/Materials | Discovered new exit (range 11) 1031 | -10/Materials | Identified exit to Mines 1068 | -10/Materials | Core integrity fell below 50% 1090 | -10/Materials | Core integrity fell below 20% 1107 | -10/Materials | Destroyed by S-10 Pest with Light Assault Rifle Last Messages --------------- 01031_ EXIT=IDENTIFIED: MINES 01046_ K-01 Serf cleans the Machine. 01047_ W-16 Scout sends out distress signal. 01050_ Spread Laser destroyed. 01076_ O-16 Technician suffers critical hit. 01076_ O-16 Technician destroyed. 01078_ Lgt. Ion Engine destroyed. 01079_ K-01 Serf collects debris. 01080_ Lgt. Assault Rifle destroyed. 01082_ K-01 Serf collects debris. 01084_ S-10 Pest destroyed. 01086_ K-01 Serf collects debris. 01088_ G-34 Mercenary destroyed. 01090_ K-01 Serf collects debris. 01091_ Aluminum Leg destroyed. 01094_ K-01 Serf collects debris. 01096_ S-10 Pest destroyed. 01098_ K-01 Serf collects debris. 01102_ Spread Laser destroyed. 01104_ K-01 Serf collects debris. Map ----- +----------------------------------------------------+ | ??????????????????# # """ ### """ !# # """ ! | | ??????????????????# # """ + / """ # # | | ??????????????????# # """ ### """ #^ ####### | | ???????????????#### # #?# %+ #?????? | | ??????????????##!! ^ # """ #?# #= #?????? | | ??????????????#! # """ =########### ######? | | ??????????????#! # """ %# ## | | ??????????????# + %#* | | ??????????????#! # %+% ## | | ??????????????##!! # [#[ #######+#### ## | | ???????????????#####+######### ####? ?# # | | ??????????????????? ???????# """# """## #" | | ?????????????????? ???????# "# """## #" | | ?##########?????? ???????# !"# """## #" | | ?# #?????# ???????# > ""# ## # | | ?# #?????# ???????# !"# ## # | | ?# #?????# ????????# "######### # | | ?# #?????# ????????# """#???????# ## | | ?# #?????# ????????## ####???????# | | ?# #?????# ?????????# #########??# | | ?# #?????####???????### ##!!!! #??# | | ?# #??????????????### # ##!!! #??# ## | | ## #######??????####### ## #?## ## | | #######+### #??????# % # ### % # | | # ########* /=k # | | # o [%%@%s %! % % < # | | # ######## # | | + ####### #??????## ##+####### # | | # #?????#######??????#T # #####+### | | # #??????????????????## # [[ ## | | # #???????????????????# + [[ ## | | # #???????????????????# #T# ### ## = "" | | # #???????????????????#+######### "Y" %## == "" | | # #??????????????????? #???????# """ ## = "" | | # #?????????????????? ????????######### "" | | # #?????????????????""" ????????????????# "" | | # < #???????????????????" ????????????????# | | # #???????????????????" ????????????????######## | | #####???????????????????? ???????????????????????? | | ?????????????????????????#???????????????????????? | | ?????????????????????????????????????????????????? | | ?????????????????????????????????????????????????? | | ?????????????????????????????????????????????????? | | ?????????????????????????????????????????????????? | | ?????????????????????????????????????????????????? | | ?????????????????????????????????????????????????? | | ?????????????????????????????????????????????????? | | ?????????????????????????????????????????????????? | | ?????????????????????????????????????????????????? | | ?????????????????????????????????????????????????? | +----------------------------------------------------+ Best States ------------- Heat Dissipation 25 Energy Generation 10 Energy Capacity 250 Matter Stores 300 Matter Capacity 300 Sight Range 16 Terrain Scan Density 10 Evasion (%) 40 Item Schematics ----------------- None Robot Schematics ------------------ None Fabricated ------------ Nothing Alien Tech Used ----------------- None Achievements -------------- None Challenges ------------ None Game ------ Seed PowerSubatomicTriangulator Manual? 0 Play Time 00:08:43 Cumulative 405.8 hours Start 2020.08.04 @ 08:53:04 End 2020.08.04 @ 09:09:34 Sessions 1 Manual Loads 0 Difficulty Rogue Special Mode None Game No. 93 Rogue 93 Adventurer 0 Explorer 0 Win Type - Total 0 Types 0/0/0/0/0/0/0 Lore% 17 Gallery% 43 Achievement% 17 Wizard Run 0 Options --------- ASCII 0 Keyboard 1 Movement Numpad Keybinds 0 Fullscreen 2 Font 18/X11Bold Map View 76x50 Tactical HUD 1 Map Filters NONE Filters NONE Steam 1 RUN: 1d6e6efc-4974-41bb-9050-23b06d31778c